[Event "January 9 Late 2024"]
[Site "https://www.chess.com"]
[Date "2024.01.10"]
[Round "10"]
[White "Saha, Ananda"]
[Black "Argandona Riveiro, Inigo"]
[Result "0-1"]
[Board "106"]
[TimeControl "180+1"]
[WhiteFideId "2619644"]
[BlackFideId "2212072"]
[WhiteElo "2497"]
[BlackElo "2394"]
[WhiteTeam "CAN"]
[BlackTeam "ESP"]
[WhiteClock "0:00:03"]
[BlackClock "0:00:19"]

1. d4 {[%clk 0:03:00]}  d6 {[%clk 0:03:00]} 2. e4 {[%clk 0:03:00]}  Nf6 {[%clk 0:03:01]} 3. Nc3 {[%clk 0:02:58]}  e5 {[%clk 0:03:02]} 4. dxe5 {[%clk 0:02:57]}  dxe5 {[%clk 0:03:03]} 5. Qxd8+ {[%clk 0:02:57]}  Kxd8 {[%clk 0:03:04]} 6. Bg5 {[%clk 0:02:57]}  Be6 {[%clk 0:03:04]} 7. Nf3 {[%clk 0:02:57]}  Nd7 {[%clk 0:03:04]} 8. O-O-O {[%clk 0:02:56]}  Bd6 {[%clk 0:03:04]} 9. Nd5 {[%clk 0:02:51]}  Bxd5 {[%clk 0:03:03]} 10. exd5 {[%clk 0:02:52]}  h6 {[%clk 0:03:02]} 11. Bd2 {[%clk 0:02:43]}  Nxd5 {[%clk 0:02:57]} 12. Bxh6 {[%clk 0:02:41]}  Rxh6 {[%clk 0:02:57]} 13. Rxd5 {[%clk 0:02:40]}  Nf6 {[%clk 0:02:56]} 14. Rd2 {[%clk 0:02:32]}  e4 {[%clk 0:02:56]} 15. Nd4 {[%clk 0:02:26]}  Rh5 {[%clk 0:02:38]} 16. Nb5 {[%clk 0:02:21]}  Rd5 {[%clk 0:02:31]} 17. Nxd6 {[%clk 0:02:14]}  Rxd6 {[%clk 0:02:28]} 18. Bc4 {[%clk 0:02:09]}  Ke7 {[%clk 0:02:26]} 19. Rxd6 {[%clk 0:02:06]}  cxd6 {[%clk 0:02:25]} 20. Kd2 {[%clk 0:01:59]}  d5 {[%clk 0:02:25]} 21. Bb3 {[%clk 0:02:00]}  b5 {[%clk 0:02:17]} 22. h3 {[%clk 0:01:55]}  Kd6 {[%clk 0:02:17]} 23. Ke3 {[%clk 0:01:55]}  g5 {[%clk 0:02:09]} 24. Rd1 {[%clk 0:01:54]}  Ke5 {[%clk 0:02:05]} 25. c3 {[%clk 0:01:50]}  a5 {[%clk 0:01:54]} 26. g3 {[%clk 0:01:50]}  a4 {[%clk 0:01:47]} 27. Bc2 {[%clk 0:01:49]}  a3 {[%clk 0:01:47]} 28. b4 {[%clk 0:01:41]}  Rc8 {[%clk 0:01:44]} 29. Kd2 {[%clk 0:01:41]}  Rc7 {[%clk 0:01:20]} 30. Bb3 {[%clk 0:01:39]}  e3+ {[%clk 0:01:21]} 31. Kxe3 {[%clk 0:01:33]}  Rxc3+ {[%clk 0:01:20]} 32. Ke2 {[%clk 0:01:29]}  d4 {[%clk 0:01:19]} 33. Bxf7 {[%clk 0:01:26]}  Ne4 {[%clk 0:01:16]} 34. Bb3 {[%clk 0:01:23]}  d3+ {[%clk 0:01:00]} 35. Rxd3 {[%clk 0:00:53]}  Rxd3 {[%clk 0:01:01]} 36. Kxd3 {[%clk 0:00:54]}  Nxf2+ {[%clk 0:01:01]} 37. Kc3 {[%clk 0:00:54]}  Nxh3 {[%clk 0:00:59]} 38. Bf7 {[%clk 0:00:50]}  Nf2 {[%clk 0:00:59]} 39. Kb3 {[%clk 0:00:48]}  Ne4 {[%clk 0:00:57]} 40. g4 {[%clk 0:00:45]}  Nf6 {[%clk 0:00:48]} 41. Kxa3 {[%clk 0:00:42]}  Nxg4 {[%clk 0:00:48]} 42. Be8 {[%clk 0:00:42]}  Ne3 {[%clk 0:00:47]} 43. Bxb5 {[%clk 0:00:42]}  g4 {[%clk 0:00:47]} 44. Bc6 {[%clk 0:00:29]}  g3 {[%clk 0:00:36]} 45. Bf3 {[%clk 0:00:22]}  Kf4 {[%clk 0:00:33]} 46. Bh1 {[%clk 0:00:19]}  Nd1 {[%clk 0:00:24]} 47. Kb3 {[%clk 0:00:17]}  Nf2 {[%clk 0:00:24]} 48. Bc6 {[%clk 0:00:17]}  Ne4 {[%clk 0:00:24]} 49. Bxe4 {[%clk 0:00:09]}  Kxe4 {[%clk 0:00:24]} 50. b5 {[%clk 0:00:09]}  g2 {[%clk 0:00:24]} 51. Kb4 {[%clk 0:00:09]}  g1=Q {[%clk 0:00:24]} 52. a4 {[%clk 0:00:10]}  Qe1+ {[%clk 0:00:23]} 53. Kc5 {[%clk 0:00:09]}  Qc3+ {[%clk 0:00:22]} 54. Kb6 {[%clk 0:00:10]}  Kd5 {[%clk 0:00:21]} 55. a5 {[%clk 0:00:08]}  Kd6 {[%clk 0:00:20]} 56. Ka6 {[%clk 0:00:06]}  Kc7 {[%clk 0:00:19]} 57. b6+ {[%clk 0:00:03]}  Kb8 {[%clk 0:00:19]} 0-1

[Event "January 9 Late 2024"]
[Site "https://www.chess.com"]
[Date "2024.01.09"]
[Round "10"]
[White "Sarkar, Justin"]
[Black "D`Arruda, Ricardo D."]
[Result "1-0"]
[Board "109"]
[TimeControl "180+1"]
[WhiteFideId "2010011"]
[BlackFideId "100692"]
[WhiteElo "2320"]
[BlackElo "2451"]
[WhiteTeam "USA"]
[BlackTeam "ARG"]
[WhiteClock "0:00:08"]
[BlackClock "0:00:12"]

1. d4 {[%clk 0:03:00]}  Nf6 {[%clk 0:02:26]} 2. c4 {[%clk 0:02:57]}  e5 {[%clk 0:02:26]} 3. dxe5 {[%clk 0:02:54]}  Ne4 {[%clk 0:02:26]} 4. a3 {[%clk 0:02:42]}  Nc6 {[%clk 0:02:25]} 5. Nf3 {[%clk 0:02:38]}  d6 {[%clk 0:02:19]} 6. Qc2 {[%clk 0:02:35]}  d5 {[%clk 0:02:14]} 7. Nc3 {[%clk 0:02:31]}  Nxc3 {[%clk 0:02:13]} 8. Qxc3 {[%clk 0:02:31]}  d4 {[%clk 0:02:12]} 9. Qd3 {[%clk 0:02:20]}  Bg4 {[%clk 0:02:05]} 10. b4 {[%clk 0:02:10]}  Qe7 {[%clk 0:01:56]} 11. Bg5 {[%clk 0:01:48]}  Qe6 {[%clk 0:01:53]} 12. Nxd4 {[%clk 0:01:39]}  Qxe5 {[%clk 0:01:29]} 13. Qe3 {[%clk 0:01:28]}  Qxe3 {[%clk 0:01:16]} 14. Bxe3 {[%clk 0:01:28]}  Nxd4 {[%clk 0:01:12]} 15. Bxd4 {[%clk 0:01:29]}  a5 {[%clk 0:01:11]} 16. b5 {[%clk 0:01:24]}  O-O-O {[%clk 0:01:11]} 17. e3 {[%clk 0:01:22]}  f6 {[%clk 0:01:08]} 18. f3 {[%clk 0:01:21]}  Be6 {[%clk 0:01:06]} 19. Be2 {[%clk 0:01:16]}  Be7 {[%clk 0:01:06]} 20. Kf2 {[%clk 0:01:14]}  Rhe8 {[%clk 0:01:07]} 21. c5 {[%clk 0:01:04]}  Bf8 {[%clk 0:00:58]} 22. Rac1 {[%clk 0:01:00]}  Bf7 {[%clk 0:00:55]} 23. Bc4 {[%clk 0:00:55]}  Bxc4 {[%clk 0:00:52]} 24. Rxc4 {[%clk 0:00:55]}  Rd5 {[%clk 0:00:52]} 25. Rhc1 {[%clk 0:00:52]}  h5 {[%clk 0:00:48]} 26. Ra4 {[%clk 0:00:49]}  Kb8 {[%clk 0:00:26]} 27. Rxa5 {[%clk 0:00:45]}  f5 {[%clk 0:00:22]} 28. f4 {[%clk 0:00:41]}  g5 {[%clk 0:00:19]} 29. g3 {[%clk 0:00:39]}  g4 {[%clk 0:00:18]} 30. Ra4 {[%clk 0:00:37]}  Re4 {[%clk 0:00:18]} 31. Rac4 {[%clk 0:00:37]}  h4 {[%clk 0:00:17]} 32. a4 {[%clk 0:00:34]}  h3 {[%clk 0:00:15]} 33. c6 {[%clk 0:00:28]}  b6 {[%clk 0:00:15]} 34. R1c2 {[%clk 0:00:14]}  Bd6 {[%clk 0:00:15]} 35. Ra2 {[%clk 0:00:09]}  Be7 {[%clk 0:00:14]} 36. a5 {[%clk 0:00:09]}  Rxb5 {[%clk 0:00:14]} 37. axb6 {[%clk 0:00:09]}  cxb6 {[%clk 0:00:15]} 38. c7+ {[%clk 0:00:09]}  Kc8 {[%clk 0:00:12]} 39. Ra8+ {[%clk 0:00:08]} 1-0

[Event "January 9 Late 2024"]
[Site "https://www.chess.com"]
[Date "2024.01.09"]
[Round "10"]
[White "Slavin, Alexey"]
[Black "Koziol, Kamil"]
[Result "0-1"]
[Board "111"]
[TimeControl "180+1"]
[WhiteFideId "24104388"]
[BlackFideId "1161555"]
[WhiteElo "2285"]
[BlackElo "2425"]
[WhiteTeam "RUS"]
[BlackTeam "POL"]
[WhiteClock "0:00:00"]
[BlackClock "0:00:13"]

1. e4 {[%clk 0:02:59]}  c5 {[%clk 0:02:51]} 2. g3 {[%clk 0:02:59]}  d5 {[%clk 0:02:51]} 3. exd5 {[%clk 0:02:58]}  Qxd5 {[%clk 0:02:49]} 4. Qf3 {[%clk 0:02:58]}  Qxf3 {[%clk 0:02:48]} 5. Nxf3 {[%clk 0:02:59]}  Nc6 {[%clk 0:02:46]} 6. a3 {[%clk 0:02:59]}  Nf6 {[%clk 0:02:45]} 7. Bg2 {[%clk 0:02:58]}  Bf5 {[%clk 0:02:41]} 8. d3 {[%clk 0:02:58]}  e6 {[%clk 0:02:38]} 9. Nh4 {[%clk 0:02:55]}  Nd4 {[%clk 0:02:35]} 10. Nxf5 {[%clk 0:02:54]}  exf5 {[%clk 0:02:33]} 11. Kd1 {[%clk 0:02:51]}  O-O-O {[%clk 0:02:30]} 12. b3 {[%clk 0:02:48]}  Ng4 {[%clk 0:02:24]} 13. Be3 {[%clk 0:02:45]}  g6 {[%clk 0:02:13]} 14. h3 {[%clk 0:02:17]}  Nxe3+ {[%clk 0:02:11]} 15. fxe3 {[%clk 0:02:17]}  Ne6 {[%clk 0:02:12]} 16. Nd2 {[%clk 0:02:11]}  h5 {[%clk 0:02:03]} 17. Rb1 {[%clk 0:02:03]}  Bd6 {[%clk 0:02:02]} 18. Nf1 {[%clk 0:01:50]}  Nc7 {[%clk 0:01:51]} 19. Kd2 {[%clk 0:01:43]}  Ne8 {[%clk 0:01:26]} 20. Rg1 {[%clk 0:01:42]}  Nf6 {[%clk 0:01:26]} 21. Bf3 {[%clk 0:01:42]}  h4 {[%clk 0:01:23]} 22. g4 {[%clk 0:01:39]}  fxg4 {[%clk 0:01:20]} 23. Bxg4+ {[%clk 0:01:38]}  Kc7 {[%clk 0:01:20]} 24. Bf3 {[%clk 0:01:31]}  Rhe8 {[%clk 0:01:14]} 25. Rg5 {[%clk 0:01:21]}  b6 {[%clk 0:01:05]} 26. a4 {[%clk 0:01:13]}  Nh7 {[%clk 0:00:58]} 27. Rg4 {[%clk 0:01:09]}  Be7 {[%clk 0:00:51]} 28. a5 {[%clk 0:01:08]}  Ng5 {[%clk 0:00:47]} 29. Bg2 {[%clk 0:01:05]}  Ne6 {[%clk 0:00:42]} 30. axb6+ {[%clk 0:01:03]}  Kxb6 {[%clk 0:00:37]} 31. Ra1 {[%clk 0:01:00]}  Nc7 {[%clk 0:00:27]} 32. Rga4 {[%clk 0:00:50]}  a6 {[%clk 0:00:27]} 33. Nh2 {[%clk 0:00:39]}  f5 {[%clk 0:00:27]} 34. Nf3 {[%clk 0:00:39]}  Bf6 {[%clk 0:00:27]} 35. Rg1 {[%clk 0:00:34]}  Nd5 {[%clk 0:00:28]} 36. Bf1 {[%clk 0:00:17]}  Bc3+ {[%clk 0:00:27]} 37. Kc1 {[%clk 0:00:14]}  Rxe3 {[%clk 0:00:27]} 38. Bg2 {[%clk 0:00:11]}  Rde8 {[%clk 0:00:22]} 39. Rxh4 {[%clk 0:00:10]}  g5 {[%clk 0:00:20]} 40. Rh6+ {[%clk 0:00:10]}  Kb5 {[%clk 0:00:20]} 41. Rg6 {[%clk 0:00:11]}  Re2 {[%clk 0:00:13]} 42. Rxg5 {[%clk 0:00:00]}  Nb4 {[%clk 0:00:13]} 0-1

[Event "January 9 Late 2024"]
[Site "https://www.chess.com"]
[Date "2024.01.09"]
[Round "10"]
[White "Ambrogi, Agustin"]
[Black "Abdi, Farzad"]
[Result "1-0"]
[Board "113"]
[TimeControl "180+1"]
[WhiteFideId "170933"]
[BlackFideId "2076829"]
[WhiteElo "2396"]
[BlackElo "2234"]
[WhiteTeam "ARG"]
[BlackTeam "USA"]
[WhiteClock "0:02:04"]
[BlackClock "0:01:30"]

1. e4 {[%clk 0:02:50]}  e5 {[%clk 0:02:56]} 2. d4 {[%clk 0:02:50]}  exd4 {[%clk 0:02:56]} 3. Qxd4 {[%clk 0:02:50]}  Nc6 {[%clk 0:02:54]} 4. Qd3 {[%clk 0:02:50]}  d6 {[%clk 0:02:54]} 5. Nc3 {[%clk 0:02:50]}  g6 {[%clk 0:02:55]} 6. Nf3 {[%clk 0:02:49]}  Bg7 {[%clk 0:02:56]} 7. Bg5 {[%clk 0:02:49]}  Nge7 {[%clk 0:02:55]} 8. O-O-O {[%clk 0:02:48]}  O-O {[%clk 0:02:56]} 9. h4 {[%clk 0:02:45]}  Bg4 {[%clk 0:02:52]} 10. h5 {[%clk 0:02:43]}  gxh5 {[%clk 0:02:52]} 11. Be2 {[%clk 0:02:42]}  Qd7 {[%clk 0:02:50]} 12. Nh4 {[%clk 0:02:39]}  Ng6 {[%clk 0:02:46]} 13. f3 {[%clk 0:02:36]}  Nce5 {[%clk 0:02:39]} 14. Qe3 {[%clk 0:02:34]}  Be6 {[%clk 0:02:38]} 15. f4 {[%clk 0:02:31]}  Ng4 {[%clk 0:02:38]} 16. Qg3 {[%clk 0:02:31]}  f6 {[%clk 0:02:24]} 17. Nxg6 {[%clk 0:02:31]}  hxg6 {[%clk 0:02:23]} 18. Bh4 {[%clk 0:02:31]}  f5 {[%clk 0:02:22]} 19. Bg5 {[%clk 0:02:30]}  c6 {[%clk 0:02:14]} 20. Bxg4 {[%clk 0:02:30]}  fxg4 {[%clk 0:02:14]} 21. f5 {[%clk 0:02:30]}  Bf7 {[%clk 0:02:06]} 22. Rxd6 {[%clk 0:02:30]}  Qc7 {[%clk 0:02:03]} 23. fxg6 {[%clk 0:02:21]}  Bxg6 {[%clk 0:02:00]} 24. e5 {[%clk 0:02:15]}  Bf7 {[%clk 0:01:49]} 25. Ne4 {[%clk 0:02:08]}  Rae8 {[%clk 0:01:38]} 26. Nf6+ {[%clk 0:02:08]}  Bxf6 {[%clk 0:01:37]} 27. Bxf6 {[%clk 0:02:07]}  Re6 {[%clk 0:01:34]} 28. Qxg4+ {[%clk 0:02:04]}  hxg4 {[%clk 0:01:30]} 29. Rh8# {[%clk 0:02:04]} 1-0

[Event "January 9 Late 2024"]
[Site "https://www.chess.com"]
[Date "2024.01.09"]
[Round "10"]
[White "Cardozo Munar, Carlos Eduardo"]
[Black "Mazurkiewicz, Michal"]
[Result "1-0"]
[Board "114"]
[TimeControl "180+1"]
[WhiteFideId "4409477"]
[BlackFideId "1124943"]
[WhiteElo "2235"]
[BlackElo "2423"]
[WhiteTeam "COL"]
[BlackTeam "POL"]
[WhiteClock "0:01:06"]
[BlackClock "0:00:03"]

1. g3 {[%clk 0:03:00]}  Nf6 {[%clk 0:02:56]} 2. Bg2 {[%clk 0:03:01]}  g6 {[%clk 0:02:57]} 3. Nf3 {[%clk 0:03:01]}  Bg7 {[%clk 0:02:57]} 4. O-O {[%clk 0:03:02]}  O-O {[%clk 0:02:58]} 5. d4 {[%clk 0:03:02]}  d6 {[%clk 0:02:59]} 6. c3 {[%clk 0:03:03]}  c5 {[%clk 0:02:57]} 7. Nbd2 {[%clk 0:03:03]}  Nc6 {[%clk 0:02:58]} 8. Re1 {[%clk 0:03:03]}  e5 {[%clk 0:02:57]} 9. e4 {[%clk 0:03:00]}  cxd4 {[%clk 0:02:55]} 10. cxd4 {[%clk 0:03:00]}  exd4 {[%clk 0:02:45]} 11. Nb3 {[%clk 0:03:00]}  Bg4 {[%clk 0:01:50]} 12. Nbxd4 {[%clk 0:02:48]}  Nxd4 {[%clk 0:01:50]} 13. Qxd4 {[%clk 0:02:48]}  Re8 {[%clk 0:01:51]} 14. Bg5 {[%clk 0:02:42]}  h6 {[%clk 0:01:29]} 15. Bf4 {[%clk 0:02:42]}  Nxe4 {[%clk 0:01:26]} 16. Qb4 {[%clk 0:02:25]}  d5 {[%clk 0:00:57]} 17. Rad1 {[%clk 0:02:23]}  Qb6 {[%clk 0:00:24]} 18. Qxb6 {[%clk 0:02:01]}  axb6 {[%clk 0:00:25]} 19. Rxd5 {[%clk 0:02:00]}  Be6 {[%clk 0:00:22]} 20. Rb5 {[%clk 0:01:55]}  f5 {[%clk 0:00:20]} 21. Rxb6 {[%clk 0:01:55]}  Bd5 {[%clk 0:00:19]} 22. Rxg6 {[%clk 0:01:51]}  Kh7 {[%clk 0:00:17]} 23. Nh4 {[%clk 0:01:51]}  Rxa2 {[%clk 0:00:12]} 24. f3 {[%clk 0:01:27]}  Bd4+ {[%clk 0:00:12]} 25. Be3 {[%clk 0:01:17]}  Ng5 {[%clk 0:00:12]} 26. Bxd4 {[%clk 0:01:10]}  Rxe1+ {[%clk 0:00:12]} 27. Kf2 {[%clk 0:01:11]}  Re7 {[%clk 0:00:11]} 28. Nxf5 {[%clk 0:01:07]}  Rf7 {[%clk 0:00:11]} 29. Rxh6+ {[%clk 0:01:06]}  Kg8 {[%clk 0:00:03]} 30. Rh8# {[%clk 0:01:06]} 1-0

[Event "January 9 Late 2024"]
[Site "https://www.chess.com"]
[Date "2024.01.09"]
[Round "10"]
[White "Rubio Tent, Francisco"]
[Black "Rodriguez Dominguez, Melissa"]
[Result "1-0"]
[Board "115"]
[TimeControl "180+1"]
[WhiteFideId "2238233"]
[BlackFideId "3517560"]
[WhiteElo "2395"]
[BlackElo "2244"]
[WhiteTeam "ESP"]
[BlackTeam "CUB"]
[WhiteClock "0:02:00"]
[BlackClock "0:02:00"]

1. d4 {[%clk 0:02:57]}  d5 {[%clk 0:02:59]} 2. Bf4 {[%clk 0:02:57]}  c5 {[%clk 0:02:58]} 3. e3 {[%clk 0:02:55]}  Nf6 {[%clk 0:02:55]} 4. c3 {[%clk 0:02:52]}  Nc6 {[%clk 0:02:55]} 5. Nd2 {[%clk 0:02:52]}  Bg4 {[%clk 0:02:55]} 6. Qb3 {[%clk 0:02:50]}  c4 {[%clk 0:02:29]} 7. Qxb7 {[%clk 0:02:44]}  Na5 {[%clk 0:02:25]} 8. Qc7 {[%clk 0:02:37]}  Qxc7 {[%clk 0:02:23]} 9. Bxc7 {[%clk 0:02:38]}  Nc6 {[%clk 0:02:24]} 10. f3 {[%clk 0:02:35]}  Bf5 {[%clk 0:02:22]} 11. g4 {[%clk 0:02:30]}  Bd7 {[%clk 0:02:20]} 12. h4 {[%clk 0:02:23]}  h5 {[%clk 0:02:20]} 13. g5 {[%clk 0:02:23]}  Nh7 {[%clk 0:02:20]} 14. Nh3 {[%clk 0:02:19]}  f6 {[%clk 0:02:15]} 15. g6 {[%clk 0:02:14]}  Bxh3 {[%clk 0:02:08]} 16. Bxh3 {[%clk 0:02:11]}  Ng5 {[%clk 0:02:08]} 17. hxg5 {[%clk 0:02:10]}  fxg5 {[%clk 0:02:09]} 18. Be6 {[%clk 0:02:06]}  h4 {[%clk 0:02:08]} 19. Bxd5 {[%clk 0:02:05]}  Kd7 {[%clk 0:02:06]} 20. Bh2 {[%clk 0:02:00]}  e5 {[%clk 0:02:00]} 1-0

[Event "January 9 Late 2024"]
[Site "https://www.chess.com"]
[Date "2024.01.09"]
[Round "10"]
[White "Glashausser, Sho"]
[Black "Sanchez Alvares, Kelvin Antonio"]
[Result "1-0"]
[Board "118"]
[TimeControl "180+1"]
[WhiteFideId "30908329"]
[BlackFideId "3906680"]
[WhiteElo "2187"]
[BlackElo "2335"]
[WhiteTeam "USA"]
[BlackTeam "VEN"]
[WhiteClock "0:00:02"]
[BlackClock "0:00:00"]

1. Nf3 {[%clk 0:02:54]}  d5 {[%clk 0:02:33]} 2. g3 {[%clk 0:02:53]}  Nf6 {[%clk 0:02:32]} 3. Bg2 {[%clk 0:02:53]}  c6 {[%clk 0:02:32]} 4. O-O {[%clk 0:02:52]}  h6 {[%clk 0:02:33]} 5. c4 {[%clk 0:02:42]}  Bf5 {[%clk 0:02:32]} 6. Qb3 {[%clk 0:02:38]}  Qb6 {[%clk 0:02:30]} 7. d3 {[%clk 0:02:36]}  e6 {[%clk 0:02:28]} 8. cxd5 {[%clk 0:02:35]}  exd5 {[%clk 0:02:23]} 9. Be3 {[%clk 0:02:31]}  Qxb3 {[%clk 0:02:17]} 10. axb3 {[%clk 0:02:31]}  Na6 {[%clk 0:02:05]} 11. Nd4 {[%clk 0:02:30]}  Bg6 {[%clk 0:01:59]} 12. Nxc6 {[%clk 0:02:29]}  Bd6 {[%clk 0:01:46]} 13. Nxa7 {[%clk 0:02:12]}  O-O {[%clk 0:01:41]} 14. Nb5 {[%clk 0:02:11]}  Bc5 {[%clk 0:01:37]} 15. Rxa6 {[%clk 0:02:03]}  bxa6 {[%clk 0:01:35]} 16. Bxc5 {[%clk 0:02:03]}  Rfc8 {[%clk 0:01:29]} 17. b4 {[%clk 0:01:39]}  axb5 {[%clk 0:01:27]} 18. Nc3 {[%clk 0:01:38]}  Rab8 {[%clk 0:01:14]} 19. Nxd5 {[%clk 0:01:37]}  Nxd5 {[%clk 0:01:10]} 20. Bxd5 {[%clk 0:01:37]}  Bf5 {[%clk 0:01:11]} 21. Ra1 {[%clk 0:01:27]}  Bg4 {[%clk 0:01:09]} 22. Ra7 {[%clk 0:01:09]}  Bxe2 {[%clk 0:00:46]} 23. Rxf7 {[%clk 0:01:07]}  Kh7 {[%clk 0:00:30]} 24. Bd4 {[%clk 0:00:54]}  Rg8 {[%clk 0:00:19]} 25. Re7 {[%clk 0:00:51]}  Bxd3 {[%clk 0:00:18]} 26. Bxg8+ {[%clk 0:00:46]}  Rxg8 {[%clk 0:00:19]} 27. f4 {[%clk 0:00:42]}  Bc4 {[%clk 0:00:19]} 28. Kf2 {[%clk 0:00:42]}  Kg6 {[%clk 0:00:20]} 29. g4 {[%clk 0:00:39]}  h5 {[%clk 0:00:18]} 30. gxh5+ {[%clk 0:00:28]}  Kxh5 {[%clk 0:00:17]} 31. Rxg7 {[%clk 0:00:18]}  Rd8 {[%clk 0:00:16]} 32. Bf6 {[%clk 0:00:12]}  Rd2+ {[%clk 0:00:14]} 33. Kg3 {[%clk 0:00:11]}  Bd5 {[%clk 0:00:09]} 34. Rg5+ {[%clk 0:00:06]}  Kh6 {[%clk 0:00:09]} 35. Kg4 {[%clk 0:00:04]}  Be6+ {[%clk 0:00:00]} 36. f5 {[%clk 0:00:02]} 1-0

[Event "January 9 Late 2024"]
[Site "https://www.chess.com"]
[Date "2024.01.09"]
[Round "10"]
[White "Sailer, Mike"]
[Black "Korol, Dimitry"]
[Result "0-1"]
[Board "119"]
[TimeControl "180+1"]
[WhiteFideId "2012901"]
[BlackFideId "14108003"]
[WhiteElo "2209"]
[BlackElo "2332"]
[WhiteTeam "USA"]
[BlackTeam "UKR"]
[WhiteClock "0:00:00"]
[BlackClock "0:00:20"]

1. d4 {[%clk 0:02:59]}  Nf6 {[%clk 0:02:59]} 2. Bf4 {[%clk 0:02:59]}  c5 {[%clk 0:02:59]} 3. e3 {[%clk 0:03:00]}  Qb6 {[%clk 0:02:59]} 4. Nc3 {[%clk 0:02:59]}  Qxb2 {[%clk 0:02:59]} 5. Nb5 {[%clk 0:02:59]}  Nd5 {[%clk 0:03:00]} 6. Rb1 {[%clk 0:02:53]}  Qxa2 {[%clk 0:02:59]} 7. Ra1 {[%clk 0:02:40]}  Qb2 {[%clk 0:02:59]} 8. Bc4 {[%clk 0:02:10]}  Qb4+ {[%clk 0:02:58]} 9. c3 {[%clk 0:01:53]}  Qxc4 {[%clk 0:02:59]} 10. Bxb8 {[%clk 0:01:39]}  Qxb5 {[%clk 0:02:19]} 11. Bxa7 {[%clk 0:01:29]}  Nxc3 {[%clk 0:01:14]} 12. Qd2 {[%clk 0:01:21]}  cxd4 {[%clk 0:01:10]} 13. exd4 {[%clk 0:01:09]}  e6 {[%clk 0:01:04]} 14. Rc1 {[%clk 0:00:32]}  Rxa7 {[%clk 0:00:28]} 15. Rxc3 {[%clk 0:00:29]}  Ra8 {[%clk 0:00:28]} 16. Ne2 {[%clk 0:00:10]}  Bb4 {[%clk 0:00:28]} 17. O-O {[%clk 0:00:11]}  Bxc3 {[%clk 0:00:27]} 18. Nxc3 {[%clk 0:00:10]}  Qa6 {[%clk 0:00:26]} 19. d5 {[%clk 0:00:09]}  O-O {[%clk 0:00:25]} 20. d6 {[%clk 0:00:10]}  b5 {[%clk 0:00:25]} 21. f4 {[%clk 0:00:10]}  Bb7 {[%clk 0:00:25]} 22. f5 {[%clk 0:00:10]}  Qc6 {[%clk 0:00:24]} 23. f6 {[%clk 0:00:09]}  b4 {[%clk 0:00:20]} 24. Qg5 {[%clk 0:00:08]}  Qxg2+ {[%clk 0:00:19]} 25. Qxg2 {[%clk 0:00:08]}  Bxg2 {[%clk 0:00:20]} 26. Rf2 {[%clk 0:00:07]}  bxc3 {[%clk 0:00:20]} 27. Rxg2 {[%clk 0:00:00]}  g6 {[%clk 0:00:20]} 0-1

[Event "January 9 Late 2024"]
[Site "https://www.chess.com"]
[Date "2024.01.10"]
[Round "10"]
[White "Feliz Dotel, Dewar Bienvenido"]
[Black "Kargosha, Bahman"]
[Result "0-1"]
[Board "123"]
[TimeControl "180+1"]
[WhiteFideId "6402801"]
[BlackFideId "12503452"]
[WhiteElo "2159"]
[BlackElo "2297"]
[WhiteTeam "DOM"]
[BlackTeam "AUS"]
[WhiteClock "0:00:00"]
[BlackClock "0:01:25"]

1. Nf3 {[%clk 0:02:58]}  Nc6 {[%clk 0:02:59]} 2. d4 {[%clk 0:02:55]}  d5 {[%clk 0:02:59]} 3. c4 {[%clk 0:02:54]}  Bg4 {[%clk 0:02:59]} 4. cxd5 {[%clk 0:02:52]}  Bxf3 {[%clk 0:02:59]} 5. gxf3 {[%clk 0:02:36]}  Qxd5 {[%clk 0:02:58]} 6. e3 {[%clk 0:02:36]}  e5 {[%clk 0:02:58]} 7. Nc3 {[%clk 0:02:31]}  Bb4 {[%clk 0:02:58]} 8. a3 {[%clk 0:02:20]}  Bxc3+ {[%clk 0:02:57]} 9. bxc3 {[%clk 0:02:21]}  Qd6 {[%clk 0:02:58]} 10. Rb1 {[%clk 0:02:13]}  b6 {[%clk 0:02:42]} 11. Bb5 {[%clk 0:02:10]}  a6 {[%clk 0:02:17]} 12. Qa4 {[%clk 0:02:05]}  Ne7 {[%clk 0:02:16]} 13. dxe5 {[%clk 0:00:51]}  Qc5 {[%clk 0:02:13]} 14. Bxc6+ {[%clk 0:00:45]}  Qxc6 {[%clk 0:02:12]} 15. Qe4 {[%clk 0:00:32]}  O-O {[%clk 0:01:57]} 16. Qxc6 {[%clk 0:00:20]}  Nxc6 {[%clk 0:01:58]} 17. f4 {[%clk 0:00:17]}  Rad8 {[%clk 0:01:58]} 18. Bd2 {[%clk 0:00:08]}  Rd5 {[%clk 0:01:46]} 19. Ke2 {[%clk 0:00:07]}  Rfd8 {[%clk 0:01:44]} 20. Rhd1 {[%clk 0:00:06]}  Ra5 {[%clk 0:01:38]} 21. Bc1 {[%clk 0:00:03]}  Rxd1 {[%clk 0:01:33]} 22. Kxd1 {[%clk 0:00:04]}  Ra4 {[%clk 0:01:28]} 23. Kc2 {[%clk 0:00:04]}  Na5 {[%clk 0:01:28]} 24. Rb4 {[%clk 0:00:03]}  b5 {[%clk 0:01:24]} 25. Rxa4 {[%clk 0:00:00]}  bxa4 {[%clk 0:01:25]} 0-1

[Event "January 9 Late 2024"]
[Site "https://www.chess.com"]
[Date "2024.01.09"]
[Round "10"]
[White "Harrington, Steve"]
[Black "Kujawski, Adam"]
[Result "0-1"]
[Board "124"]
[TimeControl "180+1"]
[WhiteFideId "2038730"]
[BlackFideId "1100920"]
[WhiteElo "2154"]
[BlackElo "2289"]
[WhiteTeam "USA"]
[BlackTeam "POL"]
[WhiteClock "0:00:00"]
[BlackClock "0:00:03"]

1. e4 {[%clk 0:03:00]}  e5 {[%clk 0:02:58]} 2. d4 {[%clk 0:02:59]}  exd4 {[%clk 0:02:58]} 3. Nf3 {[%clk 0:03:00]}  Nc6 {[%clk 0:02:58]} 4. Nxd4 {[%clk 0:03:00]}  Bb4+ {[%clk 0:02:57]} 5. c3 {[%clk 0:02:55]}  Bc5 {[%clk 0:02:56]} 6. Be3 {[%clk 0:02:55]}  Bb6 {[%clk 0:02:56]} 7. Nxc6 {[%clk 0:02:52]}  bxc6 {[%clk 0:02:52]} 8. Qd2 {[%clk 0:02:46]}  Qh4 {[%clk 0:02:43]} 9. Bd3 {[%clk 0:02:39]}  Nf6 {[%clk 0:02:41]} 10. g3 {[%clk 0:02:35]}  Qh3 {[%clk 0:02:32]} 11. Na3 {[%clk 0:02:23]}  d5 {[%clk 0:02:26]} 12. e5 {[%clk 0:01:28]}  Nd7 {[%clk 0:01:30]} 13. f4 {[%clk 0:01:23]}  Nc5 {[%clk 0:01:21]} 14. Bf1 {[%clk 0:01:20]}  Qh5 {[%clk 0:01:14]} 15. Bg2 {[%clk 0:01:18]}  Bh3 {[%clk 0:01:03]} 16. Bxc5 {[%clk 0:01:09]}  Bxg2 {[%clk 0:00:52]} 17. Qxg2 {[%clk 0:01:05]}  Bxc5 {[%clk 0:00:49]} 18. Nc2 {[%clk 0:01:05]}  a5 {[%clk 0:00:42]} 19. Qe2 {[%clk 0:01:04]}  Qg6 {[%clk 0:00:36]} 20. Nd4 {[%clk 0:01:02]}  Bxd4 {[%clk 0:00:28]} 21. cxd4 {[%clk 0:01:01]}  Rb8 {[%clk 0:00:27]} 22. O-O {[%clk 0:00:59]}  Rb4 {[%clk 0:00:25]} 23. Qd2 {[%clk 0:00:52]}  h5 {[%clk 0:00:23]} 24. a3 {[%clk 0:00:29]}  Rc4 {[%clk 0:00:22]} 25. Rac1 {[%clk 0:00:27]}  h4 {[%clk 0:00:21]} 26. Rxc4 {[%clk 0:00:26]}  dxc4 {[%clk 0:00:17]} 27. Qg2 {[%clk 0:00:24]}  hxg3 {[%clk 0:00:16]} 28. hxg3 {[%clk 0:00:25]}  O-O {[%clk 0:00:15]} 29. f5 {[%clk 0:00:24]}  Qg4 {[%clk 0:00:14]} 30. Rf4 {[%clk 0:00:23]}  Qd1+ {[%clk 0:00:14]} 31. Kh2 {[%clk 0:00:23]}  Rd8 {[%clk 0:00:11]} 32. f6 {[%clk 0:00:21]}  Rxd4 {[%clk 0:00:10]} 33. Rxd4 {[%clk 0:00:13]}  Qxd4 {[%clk 0:00:09]} 34. Qxc6 {[%clk 0:00:10]}  Qxe5 {[%clk 0:00:08]} 35. fxg7 {[%clk 0:00:10]}  Qe2+ {[%clk 0:00:07]} 36. Kh3 {[%clk 0:00:09]}  Qh5+ {[%clk 0:00:05]} 37. Kg2 {[%clk 0:00:08]}  Qe2+ {[%clk 0:00:05]} 38. Kh3 {[%clk 0:00:08]}  Kxg7 {[%clk 0:00:05]} 39. Qxc7 {[%clk 0:00:07]}  Qh5+ {[%clk 0:00:04]} 40. Kg2 {[%clk 0:00:07]}  Qd5+ {[%clk 0:00:04]} 41. Kh3 {[%clk 0:00:06]}  Kf6 {[%clk 0:00:04]} 42. Qf4+ {[%clk 0:00:00]}  Ke6 {[%clk 0:00:03]} 0-1